[Event "2026 Biel Blitz Open"]
[Site "Biel, CH"]
[Date "2026.07.19"]
[Round "2"]
[White "Tureshbayev, Anuar"]
[Black "Osmani, Xhevdet"]
[Result "1-0"]
[Board "14"]
[TimeControl "180+2"]
[WhiteFideId "651081709"]
[BlackFideId "22104569"]
[WhiteElo "2328"]
[BlackElo "1959"]
[WhiteTitle "FM"]
[WhiteClock "0:00:04"]
[BlackClock "0:00:24"]
[Variant "Standard"]
[EndDate "2026.07.19"]
[EndTime "12:08:18"]

1. Nf3 {[%clk 0:02:57]}  c6 {[%clk 0:03:04]} 2. b3 {[%clk 0:02:56]}  d5 {[%clk 0:03:05]} 3. Bb2 {[%clk 0:02:57]}  Nf6 {[%clk 0:03:06]}
4. e3 {[%clk 0:02:58]}  Nbd7 {[%clk 0:02:59]} 5. c4 {[%clk 0:02:57]}  e6 {[%clk 0:02:59]} 6. Nc3 {[%clk 0:02:56]}  Be7 {[%clk 0:03:00]}
7. Qc2 {[%clk 0:02:36]}  b6 {[%clk 0:02:48]} 8. cxd5 {[%clk 0:02:27]}  cxd5 {[%clk 0:03:02]} 9. g4 {[%clk 0:01:52]}  Bb7 {[%clk 0:02:59]}
10. g5 {[%clk 0:01:06]}  Nh5 {[%clk 0:01:46]} 11. Rg1 {[%clk 0:00:44]}  Rc8 {[%clk 0:01:43]} 12. Bb5 {[%clk 0:00:38]}  a6 {[%clk 0:01:42]}
13. Bd3 {[%clk 0:00:35]}  b5 {[%clk 0:01:43]} 14. a3 {[%clk 0:00:33]}  Nc5 {[%clk 0:01:40]} 15. Bxh7 {[%clk 0:00:23]}  Ne4 {[%clk 0:01:13]}
16. Bxe4 {[%clk 0:00:21]}  dxe4 {[%clk 0:01:14]} 17. Nd4 {[%clk 0:00:20]}  Bc5 {[%clk 0:01:07]} 18. Qd1 {[%clk 0:00:14]}  Bxd4 {[%clk 0:01:03]}
19. exd4 {[%clk 0:00:15]}  Nf4 {[%clk 0:00:56]} 20. Ra2 {[%clk 0:00:09]}  Nd3+ {[%clk 0:00:52]} 21. Kf1 {[%clk 0:00:10]}  Rxh2 {[%clk 0:00:31]}
22. Rg2 {[%clk 0:00:06]}  Qd6 {[%clk 0:00:24]} 23. Qg4 {[%clk 0:00:04]}  e3 {[%clk 0:00:24]} 1-0

[Event "2026 Biel Blitz Open"]
[Site "Biel, CH"]
[Date "2026.07.19"]
[Round "2"]
[White "Floure, Alexan"]
[Black "Omar, Noaman"]
[Result "0-1"]
[Board "16"]
[TimeControl "180+2"]
[WhiteFideId "1346610"]
[BlackFideId "9300244"]
[WhiteElo "1960"]
[BlackElo "2274"]
[BlackTitle "IM"]
[WhiteClock "0:00:03"]
[BlackClock "0:00:21"]
[Variant "Standard"]
[EndDate "2026.07.19"]
[EndTime "12:09:03"]

1. d4 {[%clk 0:03:03]}  d5 {[%clk 0:03:03]} 2. Nf3 {[%clk 0:03:04]}  Nf6 {[%clk 0:03:03]} 3. c4 {[%clk 0:03:05]}  e6 {[%clk 0:03:04]}
4. Nc3 {[%clk 0:03:05]}  Be7 {[%clk 0:03:05]} 5. Qc2 {[%clk 0:03:03]}  c5 {[%clk 0:02:59]} 6. cxd5 {[%clk 0:02:45]}  cxd4 {[%clk 0:02:57]}
7. Nxd4 {[%clk 0:02:44]}  O-O {[%clk 0:02:47]} 8. e4 {[%clk 0:02:08]}  exd5 {[%clk 0:02:47]} 9. e5 {[%clk 0:02:06]}  Ne4 {[%clk 0:02:48]}
10. Bd3 {[%clk 0:02:00]}  Nd7 {[%clk 0:02:03]} 11. f4 {[%clk 0:01:33]}  Bc5 {[%clk 0:01:28]} 12. Be3 {[%clk 0:01:24]}  Qh4+ {[%clk 0:01:24]}
13. Ke2 {[%clk 0:00:53]}  Qg4+ {[%clk 0:00:43]} 14. Kf1 {[%clk 0:00:45]}  Bxd4 {[%clk 0:00:43]} 15. Bxd4 {[%clk 0:00:40]}  Qxf4+ {[%clk 0:00:42]}
16. Kg1 {[%clk 0:00:29]}  Nec5 {[%clk 0:00:23]} 17. Bf2 {[%clk 0:00:15]}  Nxd3 {[%clk 0:00:21]} 18. Qxd3 {[%clk 0:00:16]}  Nxe5 {[%clk 0:00:21]}
19. Qxd5 {[%clk 0:00:14]}  Be6 {[%clk 0:00:23]} 20. Qe4 {[%clk 0:00:13]}  Qf6 {[%clk 0:00:21]} 21. Rf1 {[%clk 0:00:12]}  Bc4 {[%clk 0:00:21]}
22. Re1 {[%clk 0:00:11]}  Nd3 {[%clk 0:00:22]} 23. Re2 {[%clk 0:00:07]}  Rac8 {[%clk 0:00:20]} 24. Nd5 {[%clk 0:00:05]}  Bxd5 {[%clk 0:00:21]}
25. Qxd5 {[%clk 0:00:06]}  Nxf2 {[%clk 0:00:21]} 26. Qf3 {[%clk 0:00:03]} 0-1

[Event "2026 Biel Blitz Open"]
[Site "Biel, CH"]
[Date "2026.07.19"]
[Round "2"]
[White "Kukushkin, Ivan"]
[Black "Clausen, Martin"]
[Result "1-0"]
[Board "17"]
[TimeControl "180+2"]
[WhiteFideId "11634103"]
[BlackFideId "1314882"]
[WhiteElo "2265"]
[BlackElo "1956"]
[WhiteTitle "FM"]
[WhiteClock "0:00:37"]
[BlackClock "0:00:23"]
[Variant "Standard"]
[EndDate "2026.07.19"]
[EndTime "12:07:13"]

1. e4 {[%clk 0:03:03]}  d5 {[%clk 0:03:03]} 2. exd5 {[%clk 0:03:03]}  c6 {[%clk 0:03:04]} 3. Nf3 {[%clk 0:03:01]}  cxd5 {[%clk 0:03:05]}
4. Ne5 {[%clk 0:03:03]}  Nc6 {[%clk 0:03:01]} 5. Bb5 {[%clk 0:03:03]}  Bd7 {[%clk 0:03:02]} 6. Nxd7 {[%clk 0:03:04]}  Qxd7 {[%clk 0:03:02]}
7. d4 {[%clk 0:03:05]}  e6 {[%clk 0:02:59]} 8. c3 {[%clk 0:03:06]}  Nf6 {[%clk 0:02:58]} 9. O-O {[%clk 0:03:04]}  Bd6 {[%clk 0:02:58]}
10. Nd2 {[%clk 0:03:02]}  O-O {[%clk 0:02:57]} 11. Re1 {[%clk 0:03:01]}  a6 {[%clk 0:02:54]} 12. Bd3 {[%clk 0:03:02]}  b5 {[%clk 0:02:43]}
13. Nf3 {[%clk 0:03:00]}  Qc7 {[%clk 0:02:37]} 14. Bg5 {[%clk 0:02:57]}  Bf4 {[%clk 0:02:24]} 15. Bxf6 {[%clk 0:02:36]}  gxf6 {[%clk 0:02:24]}
16. g3 {[%clk 0:02:36]}  Bd6 {[%clk 0:01:48]} 17. Qd2 {[%clk 0:02:37]}  Kg7 {[%clk 0:00:59]} 18. Rac1 {[%clk 0:02:17]}  Rg8 {[%clk 0:00:57]}
19. Kh1 {[%clk 0:02:08]}  Be7 {[%clk 0:00:45]} 20. a4 {[%clk 0:02:04]}  bxa4 {[%clk 0:00:45]} 21. Qe2 {[%clk 0:01:51]}  f5 {[%clk 0:00:42]}
22. c4 {[%clk 0:01:52]}  dxc4 {[%clk 0:00:36]} 23. Rxc4 {[%clk 0:01:52]}  Qb7 {[%clk 0:00:32]} 24. d5 {[%clk 0:01:14]}  exd5 {[%clk 0:00:31]}
25. Rxc6 {[%clk 0:01:01]}  Qxc6 {[%clk 0:00:24]} 26. Qxe7 {[%clk 0:01:01]}  Rae8 {[%clk 0:00:23]} 27. Qg5+ {[%clk 0:01:00]}  Kh8 {[%clk 0:00:23]}
28. Rxe8 {[%clk 0:00:37]}  Rxe8 {[%clk 0:00:24]} 29. Qxf5 {[%clk 0:00:36]}  f6 {[%clk 0:00:23]} 30. Qxh7# {[%clk 0:00:37]} 1-0

[Event "2026 Biel Blitz Open"]
[Site "Biel, CH"]
[Date "2026.07.19"]
[Round "2"]
[White "Ragios, Konstantinos"]
[Black "Cao, Qingfeng"]
[Result "0-1"]
[Board "18"]
[TimeControl "180+2"]
[WhiteFideId "4210484"]
[BlackFideId "8627568"]
[WhiteElo "1957"]
[BlackElo "2264"]
[BlackTitle "IM"]
[WhiteClock "0:00:11"]
[BlackClock "0:00:20"]
[Variant "Standard"]
[EndDate "2026.07.19"]
[EndTime "12:08:02"]

1. e4 {[%clk 0:03:03]}  c6 {[%clk 0:03:03]} 2. Nf3 {[%clk 0:03:04]}  d5 {[%clk 0:03:04]} 3. Nc3 {[%clk 0:03:04]}  Bg4 {[%clk 0:03:05]}
4. h3 {[%clk 0:03:01]}  Bxf3 {[%clk 0:03:06]} 5. Qxf3 {[%clk 0:03:01]}  e6 {[%clk 0:03:06]} 6. exd5 {[%clk 0:03:00]}  exd5 {[%clk 0:02:51]}
7. d4 {[%clk 0:02:56]}  Bd6 {[%clk 0:02:47]} 8. Bd3 {[%clk 0:02:43]}  Nf6 {[%clk 0:02:44]} 9. Bg5 {[%clk 0:02:40]}  Nbd7 {[%clk 0:02:43]}
10. O-O-O {[%clk 0:02:31]}  O-O {[%clk 0:02:42]} 11. g4 {[%clk 0:02:24]}  b5 {[%clk 0:02:20]} 12. a3 {[%clk 0:02:03]}  a5 {[%clk 0:02:18]}
13. Ne2 {[%clk 0:02:02]}  a4 {[%clk 0:02:16]} 14. Nf4 {[%clk 0:01:56]}  Qc7 {[%clk 0:01:57]} 15. Nh5 {[%clk 0:01:50]}  Nxh5 {[%clk 0:01:57]}
16. gxh5 {[%clk 0:01:50]}  b4 {[%clk 0:01:15]} 17. axb4 {[%clk 0:01:34]}  a3 {[%clk 0:01:16]} 18. b3 {[%clk 0:01:17]}  a2 {[%clk 0:01:13]}
19. Kd2 {[%clk 0:01:15]}  Bxb4+ {[%clk 0:00:45]} 20. c3 {[%clk 0:01:06]}  Bxc3+ {[%clk 0:00:42]} 21. Kxc3 {[%clk 0:01:04]}  c5 {[%clk 0:00:43]}
22. Qxd5 {[%clk 0:00:20]}  cxd4+ {[%clk 0:00:40]} 23. Kd2 {[%clk 0:00:19]}  Qc3+ {[%clk 0:00:36]} 24. Ke2 {[%clk 0:00:20]}  Rfe8+ {[%clk 0:00:33]}
25. Kf3 {[%clk 0:00:12]}  Ne5+ {[%clk 0:00:30]} 26. Kg2 {[%clk 0:00:11]}  Nxd3 {[%clk 0:00:29]} 27. Qf5 {[%clk 0:00:10]}  Qc6+ {[%clk 0:00:28]}
28. Kh2 {[%clk 0:00:09]}  Ne5 {[%clk 0:00:24]} 29. h6 {[%clk 0:00:10]}  Nf3+ {[%clk 0:00:25]} 30. Kg3 {[%clk 0:00:10]}  Re5 {[%clk 0:00:21]}
31. Qxf3 {[%clk 0:00:09]}  Rxg5+ {[%clk 0:00:22]} 32. Qg4 {[%clk 0:00:10]}  Rxg4+ {[%clk 0:00:22]} 33. hxg4 {[%clk 0:00:10]}  Qc3+ {[%clk 0:00:22]}
34. Kf4 {[%clk 0:00:11]}  a1=Q {[%clk 0:00:20]} 0-1

[Event "2026 Biel Blitz Open"]
[Site "Biel, CH"]
[Date "2026.07.19"]
[Round "2"]
[White "Gluckman, David"]
[Black "Havolli, Daut"]
[Result "1-0"]
[Board "19"]
[TimeControl "180+2"]
[WhiteFideId "14300010"]
[BlackFideId "1315200"]
[WhiteElo "2240"]
[BlackElo "1950"]
[WhiteTitle "IM"]
[WhiteClock "0:00:55"]
[BlackClock "0:00:24"]
[Variant "Standard"]
[EndDate "2026.07.19"]
[EndTime "12:13:43"]

1. e4 {[%clk 0:03:03]}  c6 {[%clk 0:03:02]} 2. c4 {[%clk 0:02:57]}  d6 {[%clk 0:02:52]} 3. Nc3 {[%clk 0:02:54]}  e5 {[%clk 0:02:52]}
4. g3 {[%clk 0:02:50]}  Be7 {[%clk 0:02:51]} 5. Bg2 {[%clk 0:02:51]}  f5 {[%clk 0:02:52]} 6. d3 {[%clk 0:02:28]}  Nf6 {[%clk 0:02:49]}
7. Nge2 {[%clk 0:02:25]}  O-O {[%clk 0:02:49]} 8. O-O {[%clk 0:02:13]}  fxe4 {[%clk 0:02:46]} 9. dxe4 {[%clk 0:02:13]}  Be6 {[%clk 0:02:41]}
10. b3 {[%clk 0:02:10]}  Nbd7 {[%clk 0:02:35]} 11. f4 {[%clk 0:01:54]}  Qb6+ {[%clk 0:02:28]} 12. Kh1 {[%clk 0:01:54]}  Ng4 {[%clk 0:02:26]}
13. f5 {[%clk 0:01:39]}  Bf7 {[%clk 0:02:11]} 14. Na4 {[%clk 0:01:39]}  Qc7 {[%clk 0:02:03]} 15. h3 {[%clk 0:01:33]}  Ngf6 {[%clk 0:02:04]}
16. Nac3 {[%clk 0:01:33]}  Rad8 {[%clk 0:01:58]} 17. Be3 {[%clk 0:01:33]}  Nb6 {[%clk 0:01:53]} 18. Rc1 {[%clk 0:01:32]}  Qb8 {[%clk 0:01:27]}
19. Qe1 {[%clk 0:01:31]}  d5 {[%clk 0:01:22]} 20. cxd5 {[%clk 0:01:31]}  cxd5 {[%clk 0:01:21]} 21. Bxb6 {[%clk 0:01:26]}  axb6 {[%clk 0:01:21]}
22. Nxd5 {[%clk 0:01:26]}  Nxd5 {[%clk 0:01:22]} 23. exd5 {[%clk 0:01:27]}  Bxd5 {[%clk 0:01:22]} 24. Bxd5+ {[%clk 0:01:23]}  Rxd5 {[%clk 0:01:23]}
25. Nc3 {[%clk 0:01:25]}  Rd3 {[%clk 0:01:15]} 26. Ne4 {[%clk 0:01:24]}  Bc5 {[%clk 0:01:11]} 27. Qe2 {[%clk 0:01:18]}  Re3 {[%clk 0:01:04]}
28. Qc4+ {[%clk 0:01:18]}  Kh8 {[%clk 0:01:02]} 29. Rc3 {[%clk 0:01:16]}  Rxc3 {[%clk 0:00:51]} 30. Qxc3 {[%clk 0:01:17]}  Bd4 {[%clk 0:00:53]}
31. Qc4 {[%clk 0:01:16]}  h6 {[%clk 0:00:52]} 32. f6 {[%clk 0:01:14]}  Qc8 {[%clk 0:00:45]} 33. fxg7+ {[%clk 0:01:14]}  Kxg7 {[%clk 0:00:46]}
34. Rxf8 {[%clk 0:01:06]}  Qxf8 {[%clk 0:00:47]} 35. Qc7+ {[%clk 0:01:06]}  Kh8 {[%clk 0:00:41]} 36. Kg2 {[%clk 0:01:04]}  Qg7 {[%clk 0:00:34]}
37. Qxg7+ {[%clk 0:01:02]}  Kxg7 {[%clk 0:00:35]} 38. Nd6 {[%clk 0:01:01]}  Kf6 {[%clk 0:00:32]} 39. Kf3 {[%clk 0:01:01]}  Ke6 {[%clk 0:00:32]}
40. Ne4 {[%clk 0:00:54]}  b5 {[%clk 0:00:27]} 41. g4 {[%clk 0:00:54]}  b6 {[%clk 0:00:26]} 42. h4 {[%clk 0:00:55]}  Bb2 {[%clk 0:00:24]} 1-0

[Event "2026 Biel Blitz Open"]
[Site "Biel, CH"]
[Date "2026.07.19"]
[Round "2"]
[White "Jehnichen, Kai"]
[Black "Ling, Chenxuan"]
[Result "0-1"]
[Board "20"]
[TimeControl "180+2"]
[WhiteFideId "24684333"]
[BlackFideId "30983118"]
[WhiteElo "1952"]
[BlackElo "2235"]
[BlackTitle "CM"]
[WhiteClock "0:00:46"]
[BlackClock "0:00:58"]
[Variant "Standard"]
[EndDate "2026.07.19"]
[EndTime "12:08:13"]

1. Nf3 {[%clk 0:03:01]}  Nf6 {[%clk 0:03:04]} 2. g3 {[%clk 0:03:01]}  g6 {[%clk 0:03:05]} 3. Bg2 {[%clk 0:03:03]}  Bg7 {[%clk 0:03:06]}
4. O-O {[%clk 0:03:04]}  O-O {[%clk 0:03:07]} 5. d3 {[%clk 0:03:05]}  d5 {[%clk 0:03:07]} 6. c4 {[%clk 0:03:04]}  c6 {[%clk 0:03:07]}
7. h3 {[%clk 0:03:02]}  Nbd7 {[%clk 0:03:06]} 8. Nc3 {[%clk 0:03:01]}  e5 {[%clk 0:03:06]} 9. Bg5 {[%clk 0:03:00]}  d4 {[%clk 0:03:06]}
10. Ne4 {[%clk 0:03:01]}  Qc7 {[%clk 0:03:06]} 11. Nxf6+ {[%clk 0:02:59]}  Nxf6 {[%clk 0:03:07]} 12. Qd2 {[%clk 0:02:56]}  Be6 {[%clk 0:03:02]}
13. Bh6 {[%clk 0:02:53]}  Nd7 {[%clk 0:03:03]} 14. Bxg7 {[%clk 0:02:50]}  Kxg7 {[%clk 0:03:04]} 15. Ng5 {[%clk 0:02:50]}  Qd6 {[%clk 0:03:05]}
16. b4 {[%clk 0:02:47]}  Rae8 {[%clk 0:02:58]} 17. Rab1 {[%clk 0:02:46]}  b6 {[%clk 0:02:56]} 18. a4 {[%clk 0:02:44]}  c5 {[%clk 0:02:54]}
19. Ne4 {[%clk 0:02:42]}  Qc7 {[%clk 0:02:55]} 20. bxc5 {[%clk 0:02:43]}  Nxc5 {[%clk 0:02:55]} 21. Nxc5 {[%clk 0:02:44]}  Qxc5 {[%clk 0:02:52]}
22. Rb5 {[%clk 0:02:45]}  Qd6 {[%clk 0:02:52]} 23. a5 {[%clk 0:02:46]}  Bd7 {[%clk 0:02:53]} 24. Rd5 {[%clk 0:02:47]}  Qc7 {[%clk 0:02:50]}
25. axb6 {[%clk 0:02:48]}  axb6 {[%clk 0:02:52]} 26. c5 {[%clk 0:02:37]}  Bc6 {[%clk 0:02:31]} 27. cxb6 {[%clk 0:02:38]}  Qb7 {[%clk 0:02:33]}
28. Qa5 {[%clk 0:02:03]}  Ra8 {[%clk 0:02:17]} 29. Qc5 {[%clk 0:02:02]}  Rac8 {[%clk 0:02:15]} 30. Qd6 {[%clk 0:02:02]}  Bxd5 {[%clk 0:02:07]}
31. Qxe5+ {[%clk 0:02:02]}  Kg8 {[%clk 0:02:05]} 32. Bxd5 {[%clk 0:02:03]}  Qxb6 {[%clk 0:02:06]} 33. Bc4 {[%clk 0:01:54]}  Rce8 {[%clk 0:02:03]}
34. Qg5 {[%clk 0:01:46]}  Rxe2 {[%clk 0:02:03]} 35. h4 {[%clk 0:01:44]}  Kg7 {[%clk 0:02:02]} 36. Kg2 {[%clk 0:01:42]}  Rfe8 {[%clk 0:01:44]}
37. Qf4 {[%clk 0:01:42]}  Qf6 {[%clk 0:01:35]} 38. Qc7 {[%clk 0:01:36]}  Re1 {[%clk 0:01:34]} 39. Qd7 {[%clk 0:01:22]}  Rxf1 {[%clk 0:01:24]}
40. Kxf1 {[%clk 0:01:21]}  Re7 {[%clk 0:01:26]} 41. Qd5 {[%clk 0:01:21]}  Qe5 {[%clk 0:01:23]} 42. Qa8 {[%clk 0:01:12]}  Qf5 {[%clk 0:01:20]}
43. Kg2 {[%clk 0:01:05]}  Re2 {[%clk 0:01:19]} 44. Qf3 {[%clk 0:00:50]}  Qxf3+ {[%clk 0:01:20]} 45. Kxf3 {[%clk 0:00:51]}  Re7 {[%clk 0:01:21]}
46. Bd5 {[%clk 0:00:52]}  f5 {[%clk 0:01:22]} 47. g4 {[%clk 0:00:49]}  Kf6 {[%clk 0:01:23]} 48. g5+ {[%clk 0:00:49]}  Ke5 {[%clk 0:01:24]}
49. Bg8 {[%clk 0:00:50]}  Rg7 {[%clk 0:01:25]} 50. Bc4 {[%clk 0:00:51]}  h6 {[%clk 0:01:20]} 51. Kg3 {[%clk 0:00:47]}  hxg5 {[%clk 0:01:21]}
52. hxg5 {[%clk 0:00:48]}  Rc7 {[%clk 0:01:07]} 53. Kf3 {[%clk 0:00:45]}  Rh7 {[%clk 0:01:00]} 54. Bg8 {[%clk 0:00:45]}  Rh3+ {[%clk 0:00:58]}
55. Ke2 {[%clk 0:00:46]}  Kf4 {[%clk 0:00:58]} 0-1

[Event "2026 Biel Blitz Open"]
[Site "Biel, CH"]
[Date "2026.07.19"]
[Round "2"]
[White "Fogo Esquivel, Levi Kalani Alexander"]
[Black "Dai, Wenzhi"]
[Result "1/2-1/2"]
[Board "21"]
[TimeControl "180+2"]
[WhiteFideId "5183189"]
[BlackFideId "8608369"]
[WhiteElo "2219"]
[BlackElo "1943"]
[WhiteTitle "FM"]
[WhiteClock "0:00:13"]
[BlackClock "0:00:09"]
[Variant "Standard"]
[EndDate "2026.07.19"]
[EndTime "12:08:47"]

1. e4 {[%clk 0:03:03]}  e5 {[%clk 0:03:04]} 2. Nf3 {[%clk 0:03:04]}  Nf6 {[%clk 0:03:05]} 3. Nxe5 {[%clk 0:02:46]}  d6 {[%clk 0:03:06]}
4. Nf3 {[%clk 0:02:47]}  Nxe4 {[%clk 0:03:07]} 5. Nc3 {[%clk 0:02:47]}  Nxc3 {[%clk 0:03:07]} 6. dxc3 {[%clk 0:02:48]}  Be7 {[%clk 0:03:08]}
7. Be3 {[%clk 0:02:47]}  Nd7 {[%clk 0:03:09]} 8. Qd2 {[%clk 0:02:46]}  O-O {[%clk 0:03:09]} 9. Bd3 {[%clk 0:02:46]}  Nf6 {[%clk 0:03:10]}
10. h3 {[%clk 0:02:46]}  Re8 {[%clk 0:03:11]} 11. O-O {[%clk 0:02:36]}  d5 {[%clk 0:02:44]} 12. Rad1 {[%clk 0:02:30]}  c6 {[%clk 0:02:45]}
13. c4 {[%clk 0:02:17]}  dxc4 {[%clk 0:02:39]} 14. Bxc4 {[%clk 0:02:18]}  Qxd2 {[%clk 0:02:29]} 15. Rxd2 {[%clk 0:02:19]}  Bf5 {[%clk 0:02:30]}
16. Ne5 {[%clk 0:02:11]}  Bg6 {[%clk 0:02:10]} 17. Nxg6 {[%clk 0:02:12]}  hxg6 {[%clk 0:02:08]} 18. Rfd1 {[%clk 0:02:13]}  b5 {[%clk 0:01:55]}
19. Bb3 {[%clk 0:02:06]}  a5 {[%clk 0:01:39]} 20. a4 {[%clk 0:02:08]}  Rab8 {[%clk 0:01:41]} 21. c3 {[%clk 0:01:46]}  Red8 {[%clk 0:01:03]}
22. axb5 {[%clk 0:01:29]}  cxb5 {[%clk 0:01:01]} 23. Rxd8+ {[%clk 0:01:28]}  Rxd8 {[%clk 0:00:58]} 24. Bb6 {[%clk 0:01:29]}  Rxd1+ {[%clk 0:00:59]}
25. Bxd1 {[%clk 0:01:30]}  a4 {[%clk 0:01:00]} 26. Be2 {[%clk 0:01:32]}  b4 {[%clk 0:00:44]} 27. cxb4 {[%clk 0:01:27]}  Bxb4 {[%clk 0:00:42]}
28. Bd1 {[%clk 0:01:27]}  a3 {[%clk 0:00:43]} 29. bxa3 {[%clk 0:01:29]}  Bxa3 {[%clk 0:00:44]} 30. g4 {[%clk 0:01:29]}  Nd5 {[%clk 0:00:35]}
31. Bd4 {[%clk 0:01:30]}  Nf4 {[%clk 0:00:35]} 32. h4 {[%clk 0:01:27]}  Be7 {[%clk 0:00:34]} 33. g5 {[%clk 0:01:24]}  f6 {[%clk 0:00:33]}
34. gxf6 {[%clk 0:01:04]}  Bxf6 {[%clk 0:00:29]} 35. Be3 {[%clk 0:00:40]}  Nh5 {[%clk 0:00:29]} 36. Kg2 {[%clk 0:00:37]}  Bxh4 {[%clk 0:00:27]}
37. Bb3+ {[%clk 0:00:39]}  Kh7 {[%clk 0:00:28]} 38. Kh3 {[%clk 0:00:40]}  Be7 {[%clk 0:00:26]} 39. Kg4 {[%clk 0:00:36]}  Nf6+ {[%clk 0:00:26]}
40. Kf4 {[%clk 0:00:41]}  Bd6+ {[%clk 0:00:26]} 41. Kg5 {[%clk 0:00:42]}  Ne4+ {[%clk 0:00:25]} 42. Kh4 {[%clk 0:00:41]}  Bc5 {[%clk 0:00:18]}
43. Bc2 {[%clk 0:00:14]}  Bxe3 {[%clk 0:00:16]} 44. fxe3 {[%clk 0:00:15]}  Nd6 {[%clk 0:00:15]} 45. e4 {[%clk 0:00:13]}  Nxe4 {[%clk 0:00:09]} 1/2-1/2

[Event "2026 Biel Blitz Open"]
[Site "Biel, CH"]
[Date "2026.07.19"]
[Round "2"]
[White "Jud, Marc"]
[Black "Rohrer, Christophe"]
[Result "0-1"]
[Board "22"]
[TimeControl "180+2"]
[WhiteFideId "1309099"]
[BlackFideId "1326546"]
[WhiteElo "1946"]
[BlackElo "2216"]
[BlackTitle "FM"]
[WhiteClock "0:00:31"]
[BlackClock "0:00:09"]
[Variant "Standard"]
[EndDate "2026.07.19"]
[EndTime "12:08:13"]

1. d4 {[%clk 0:03:03]}  Nf6 {[%clk 0:03:03]} 2. Nf3 {[%clk 0:03:04]}  d5 {[%clk 0:03:04]} 3. e3 {[%clk 0:03:05]}  e6 {[%clk 0:03:05]}
4. c4 {[%clk 0:03:06]}  Nbd7 {[%clk 0:03:05]} 5. cxd5 {[%clk 0:03:07]}  exd5 {[%clk 0:03:05]} 6. b3 {[%clk 0:03:08]}  Bd6 {[%clk 0:03:03]}
7. Bb2 {[%clk 0:03:08]}  O-O {[%clk 0:03:01]} 8. Bd3 {[%clk 0:03:09]}  Qe7 {[%clk 0:02:57]} 9. O-O {[%clk 0:03:08]}  b6 {[%clk 0:02:54]}
10. Nbd2 {[%clk 0:03:07]}  Bb7 {[%clk 0:02:54]} 11. Rc1 {[%clk 0:03:01]}  a6 {[%clk 0:02:50]} 12. Qe2 {[%clk 0:02:38]}  Rfe8 {[%clk 0:02:50]}
13. Rfe1 {[%clk 0:02:23]}  Ne4 {[%clk 0:02:44]} 14. Rc2 {[%clk 0:01:47]}  f5 {[%clk 0:02:44]} 15. Rec1 {[%clk 0:01:44]}  c5 {[%clk 0:01:59]}
16. Ne1 {[%clk 0:01:34]}  Qh4 {[%clk 0:01:37]} 17. g3 {[%clk 0:01:28]}  Qh3 {[%clk 0:01:32]} 18. Bxe4 {[%clk 0:01:27]}  fxe4 {[%clk 0:01:29]}
19. Qf1 {[%clk 0:01:24]}  Qh5 {[%clk 0:01:28]} 20. Qg2 {[%clk 0:01:17]}  Re6 {[%clk 0:01:26]} 21. dxc5 {[%clk 0:01:08]}  bxc5 {[%clk 0:01:26]}
22. b4 {[%clk 0:01:01]}  c4 {[%clk 0:01:21]} 23. a3 {[%clk 0:00:59]}  Rf8 {[%clk 0:01:21]} 24. Bd4 {[%clk 0:00:56]}  Be5 {[%clk 0:01:19]}
25. Rc3 {[%clk 0:00:38]}  Ref6 {[%clk 0:01:03]} 26. f4 {[%clk 0:00:16]}  exf3 {[%clk 0:01:04]} 27. Nexf3 {[%clk 0:00:16]}  Rxf3 {[%clk 0:00:42]}
28. Nxf3 {[%clk 0:00:17]}  Qxf3 {[%clk 0:00:35]} 29. Qxf3 {[%clk 0:00:08]}  Rxf3 {[%clk 0:00:36]} 30. Rf1 {[%clk 0:00:09]}  Rxf1+ {[%clk 0:00:35]}
31. Kxf1 {[%clk 0:00:10]}  Bxd4 {[%clk 0:00:30]} 32. exd4 {[%clk 0:00:11]}  Nf6 {[%clk 0:00:26]} 33. Rc1 {[%clk 0:00:11]}  Bc6 {[%clk 0:00:27]}
34. Kf2 {[%clk 0:00:10]}  Ne4+ {[%clk 0:00:28]} 35. Ke3 {[%clk 0:00:11]}  Kf7 {[%clk 0:00:28]} 36. Rf1+ {[%clk 0:00:12]}  Ke7 {[%clk 0:00:29]}
37. Ra1 {[%clk 0:00:11]}  Ba4 {[%clk 0:00:30]} 38. Rc1 {[%clk 0:00:11]}  c3 {[%clk 0:00:31]} 39. Kd3 {[%clk 0:00:09]}  c2 {[%clk 0:00:31]} 0-1

[Event "2026 Biel Blitz Open"]
[Site "Biel, CH"]
[Date "2026.07.19"]
[Round "2"]
[White "Kolly, Jacques"]
[Black "Garcia, Miguel"]
[Result "1-0"]
[Board "23"]
[TimeControl "180+2"]
[WhiteFideId "1302183"]
[BlackFideId "1317431"]
[WhiteElo "2203"]
[BlackElo "1938"]
[WhiteTitle "FM"]
[WhiteClock "0:00:45"]
[BlackClock "0:00:23"]
[Variant "Standard"]
[EndDate "2026.07.19"]
[EndTime "12:11:12"]

1. d4 {[%clk 0:03:02]}  Nf6 {[%clk 0:03:02]} 2. c4 {[%clk 0:03:02]}  g6 {[%clk 0:03:02]} 3. Nc3 {[%clk 0:03:05]}  Bg7 {[%clk 0:03:05]}
4. e4 {[%clk 0:03:06]}  d6 {[%clk 0:02:55]} 5. f3 {[%clk 0:00:00]}  O-O {[%clk 0:03:03]} 6. Bg5 {[%clk 0:03:07]}  h6 {[%clk 0:03:03]}
7. Be3 {[%clk 0:03:08]}  Na6 {[%clk 0:02:59]} 8. Qd2 {[%clk 0:03:09]}  Kh7 {[%clk 0:03:00]} 9. Bd3 {[%clk 0:03:10]}  c5 {[%clk 0:02:58]}
10. d5 {[%clk 0:03:03]}  e6 {[%clk 0:02:41]} 11. Nge2 {[%clk 0:03:01]}  exd5 {[%clk 0:02:41]} 12. cxd5 {[%clk 0:02:55]}  Nc7 {[%clk 0:02:26]}
13. O-O {[%clk 0:02:53]}  b5 {[%clk 0:02:19]} 14. Nxb5 {[%clk 0:02:46]}  Nxb5 {[%clk 0:02:18]} 15. Bxb5 {[%clk 0:02:47]}  Rb8 {[%clk 0:02:18]}
16. Bc4 {[%clk 0:02:31]}  Nd7 {[%clk 0:02:17]} 17. Rab1 {[%clk 0:02:23]}  Ne5 {[%clk 0:02:02]} 18. Bb3 {[%clk 0:02:19]}  c4 {[%clk 0:02:02]}
19. Bc2 {[%clk 0:02:20]}  a5 {[%clk 0:01:55]} 20. Bd4 {[%clk 0:02:21]}  Ba6 {[%clk 0:01:47]} 21. Bc3 {[%clk 0:02:01]}  Nd3 {[%clk 0:01:46]}
22. Bxd3 {[%clk 0:01:54]}  cxd3 {[%clk 0:01:46]} 23. Nd4 {[%clk 0:01:25]}  Qb6 {[%clk 0:01:35]} 24. Qf2 {[%clk 0:01:06]}  Rfc8 {[%clk 0:01:19]}
25. Nc6 {[%clk 0:01:19]}  Rxc6 {[%clk 0:01:02]} 26. dxc6 {[%clk 0:01:13]}  Bxc3 {[%clk 0:00:58]} 27. Qxb6 {[%clk 0:01:09]}  Rxb6 {[%clk 0:00:58]}
28. bxc3 {[%clk 0:01:10]}  Rxc6 {[%clk 0:00:58]} 29. Rb3 {[%clk 0:00:59]}  Bc4 {[%clk 0:00:52]} 30. Ra3 {[%clk 0:01:00]}  Rc5 {[%clk 0:00:47]}
31. Rd1 {[%clk 0:00:59]}  Kg7 {[%clk 0:00:48]} 32. Kf2 {[%clk 0:01:00]}  Kf6 {[%clk 0:00:48]} 33. Ke3 {[%clk 0:01:02]}  d5 {[%clk 0:00:47]}
34. Kd4 {[%clk 0:01:00]}  Rb5 {[%clk 0:00:41]} 35. e5+ {[%clk 0:00:58]}  Ke6 {[%clk 0:00:41]} 36. Rd2 {[%clk 0:00:54]}  f5 {[%clk 0:00:32]}
37. f4 {[%clk 0:00:55]}  g5 {[%clk 0:00:32]} 38. g3 {[%clk 0:00:56]}  Kd7 {[%clk 0:00:28]} 39. Ra4 {[%clk 0:00:55]}  Kc6 {[%clk 0:00:28]}
40. Rxc4+ {[%clk 0:00:55]}  dxc4 {[%clk 0:00:28]} 41. Kxc4 {[%clk 0:00:56]}  Rd5 {[%clk 0:00:23]} 42. Rxd3 {[%clk 0:00:57]}  Rc5+ {[%clk 0:00:21]}
43. Kb3 {[%clk 0:00:59]}  Rb5+ {[%clk 0:00:18]} 44. Kc2 {[%clk 0:01:00]}  a4 {[%clk 0:00:19]} 45. c4 {[%clk 0:00:48]}  Rb4 {[%clk 0:00:19]}
46. Kc3 {[%clk 0:00:48]}  Rb1 {[%clk 0:00:20]} 47. Rd6+ {[%clk 0:00:47]}  Kc7 {[%clk 0:00:21]} 48. Rxh6 {[%clk 0:00:46]}  a3 {[%clk 0:00:22]}
49. Ra6 {[%clk 0:00:46]}  gxf4 {[%clk 0:00:22]} 50. gxf4 {[%clk 0:00:47]}  Rb2 {[%clk 0:00:21]} 51. Rxa3 {[%clk 0:00:47]}  Rxh2 {[%clk 0:00:21]}
52. Ra7+ {[%clk 0:00:42]}  Kb6 {[%clk 0:00:22]} 53. Rf7 {[%clk 0:00:43]}  Rh3+ {[%clk 0:00:23]} 54. Kd4 {[%clk 0:00:44]}  Ra3 {[%clk 0:00:23]}
55. Rxf5 {[%clk 0:00:45]} 1-0